fUST/lending_fUST_20240908
["ID","MTS","AMOUNT","RATE_DAILY","PERIOD"]
[337553240,1725807038718,-4026.45770688,0.00046468,2]
[337553241,1725807038729,-4026.45770688,0.0004647,2]
[337553242,1725807038740,-4026.45770688,0.00046473,2]
[337553243,1725807038751,-4026.45770688,0.00046475,2]
[337553244,1725807038763,-3014.48555812,0.00046475,120]
[337553245,1725807038775,-279.45,0.00046545,3]
[337553246,1725807039026,-386.63,0.00046545,3]
[337553247,1725807039037,-500.0,0.00046554,120]
[337553248,1725807039048,-329.42787977,0.00046554,120]
[337553249,1725807039059,-49888.5293252,0.00046555,5]
[337553250,1725807039069,-25386.88181983,0.00046555,5]
[337553251,1725807039082,-1332.13784,0.00046555,5]
[337553252,1725807039094,-36048.55830895,0.00046555,5]
[337553253,1725807039106,-136786.53933222,0.00046555,5]
[337553254,1725807039116,-53802.06487524,0.00046575,61]
[337553255,1725807039126,-500.0,0.00046575,120]
[337553256,1725807039137,-200.0,0.00046575,7]
[337553257,1725807039147,-504.45795283,0.00046575,120]
[337553258,1725807039157,-500.0,0.00046575,120]
[337553259,1725807039167,-500.0,0.00046575,120]
[337553260,1725807039177,-500.0,0.00046575,120]
[337553261,1725807039187,-500.0,0.00046575,120]
[337553262,1725807039197,-762.69,0.00046575,120]
[337553263,1725807039207,-505.61998692,0.00046575,120]
[337553264,1725807039216,-500.0,0.00046575,120]
[337553265,1725807039226,-500.0,0.00046575,120]
[337553266,1725807039236,-500.0,0.00046575,120]
[337553267,1725807039245,-500.0,0.00046575,120]
[337553268,1725807039255,-1123.57,0.00046575,120]
[337553269,1725807039264,-568.31231952,0.00046575,120]
[337553270,1725807039274,-500.0,0.00046575,120]
[337553271,1725807039283,-500.0,0.00046575,120]
[337553272,1725807039293,-803.75,0.00046575,120]
[337553273,1725807039303,-500.0,0.00046575,120]
[337553274,1725807039312,-500.0,0.00046575,120]
[337553275,1725807039322,-500.0,0.00046575,120]
[337553276,1725807039331,-500.0,0.00046575,120]
[337553277,1725807039342,-500.0,0.00046575,120]
[337553278,1725807039352,-500.0,0.00046575,120]
[337553279,1725807039362,-500.0,0.00046575,120]
[337553280,1725807039372,-269.46541023,0.00046575,120]
[337553281,1725807039382,-500.0,0.00046575,120]
[337553282,1725807039392,-565.16,0.00046575,120]
[337553283,1725807039403,-301.66368581,0.00046575,120]
[337553284,1725807039412,-712.34,0.00046575,120]
[337553285,1725807039422,-500.0,0.00046575,120]
[337553286,1725807039432,-945.68,0.00046575,120]
[337553287,1725807039442,-634.16,0.00046575,120]
[337553288,1725807039452,-500.0,0.00046575,120]
[337553289,1725807039462,-500.0,0.00046575,120]
[337553290,1725807039472,-500.0,0.00046575,120]
[337553291,1725807039482,-937.02,0.00046575,120]
[337553292,1725807039491,-500.0,0.00046575,120]
[337553293,1725807039502,-500.0,0.00046575,120]
[337553294,1725807039512,-500.0,0.00046575,120]
[337553295,1725807039521,-500.0,0.00046575,120]
[337553296,1725807039533,-1339.26,0.00046575,120]
[337553297,1725807039544,-500.0,0.00046575,120]
[337553298,1725807039553,-500.0,0.00046575,120]
[337553299,1725807039563,-533.43017349,0.00046575,120]
[337553300,1725807039574,-500.0,0.00046575,120]
[337553301,1725807039586,-500.0,0.00046575,120]
[337553302,1725807039596,-500.0,0.00046575,120]
[337553303,1725807039608,-500.0,0.00046575,120]
[337553304,1725807039619,-500.0,0.00046575,120]
[337553305,1725807039629,-500.0,0.00046575,120]
[337553306,1725807039641,-507.4240168,0.00046575,120]
[337553307,1725807039651,-500.0,0.00046575,120]
[337553308,1725807039660,-500.0,0.00046575,120]
[337553309,1725807039670,-500.0,0.00046575,120]
[337553310,1725807039679,-500.0,0.00046575,120]
[337553311,1725807039690,-500.0,0.00046575,120]
[337553312,1725807039700,-500.0,0.00046575,120]
[337553313,1725807039712,-500.0,0.00046575,120]
[337553314,1725807039724,-500.0,0.00046575,120]
[337553315,1725807039734,-500.0,0.00046575,120]
[337553316,1725807039745,-500.0,0.00046575,120]
[337553317,1725807039755,-500.0,0.00046575,120]
[337553318,1725807039765,-500.0,0.00046575,120]
[337553319,1725807039776,-500.0,0.00046575,120]
[337553320,1725807039785,-500.0,0.00046575,120]
[337553321,1725807039795,-186.15270909,0.00046575,120]
[337553322,1725807039804,-888.63,0.00046575,120]
[337553323,1725807039815,-500.0,0.00046575,120]
[337553325,1725807039826,-500.0,0.00046575,120]
[337553326,1725807039836,-500.0,0.00046575,120]
[337553327,1725807039846,-170.38448797,0.00046575,120]
[337553328,1725807039855,-500.0,0.00046575,120]
[337553329,1725807039865,-500.0,0.00046575,120]
[337553330,1725807039878,-500.0,0.00046575,120]
[337553331,1725807039888,-500.0,0.00046575,120]
[337553332,1725807039899,-256.10126878,0.00046575,120]
[337553333,1725807039910,-500.0,0.00046575,120]
[337553334,1725807039922,-500.0,0.00046575,120]
[337553335,1725807039932,-1124.39,0.00046575,120]
[337553336,1725807039943,-500.0,0.00046575,120]
[337553338,1725807039956,-534.66,0.00046575,120]
[337553339,1725807039966,-500.0,0.00046575,120]
[337553340,1725807039976,-500.0,0.00046575,120]
[337553341,1725807039987,-759.6,0.00046575,30]
[337553342,1725807039996,-500.0,0.00046575,120]
[337553343,1725807040007,-500.0,0.00046575,120]
[337553344,1725807040017,-500.0,0.00046575,120]
[337553345,1725807040027,-607.64,0.00046575,120]
[337553346,1725807040037,-695.06,0.00046575,120]
[337553347,1725807040047,-500.0,0.00046575,120]
[337553348,1725807040058,-500.0,0.00046575,120]
[337553349,1725807040068,-995.35,0.00046575,120]
[337553350,1725807040078,-500.0,0.00046575,120]
[337553351,1725807040087,-500.0,0.00046575,120]
[337553352,1725807040097,-500.0,0.00046575,120]
[337553353,1725807040107,-500.0,0.00046575,120]
[337553354,1725807040117,-500.0,0.00046575,120]
[337553355,1725807040127,-500.0,0.00046575,120]
[337553356,1725807040136,-500.0,0.00046575,120]
[337553357,1725807040146,-816.65,0.00046575,120]
[337553358,1725807040156,-515.79946428,0.00046575,120]
[337553359,1725807040166,-500.0,0.00046575,120]
[337553360,1725807040175,-582.17,0.00046575,120]
[337553362,1725807040185,-191.35508334,0.00046575,120]
[337553364,1725807040195,-500.0,0.00046575,120]
[337553366,1725807040206,-500.0,0.00046575,120]
[337553368,1725807040217,-500.0,0.00046575,2]
[337553370,1725807040227,-657.74,0.00046575,120]
[337553372,1725807040237,-500.0,0.00046575,120]
[337553374,1725807040246,-500.0,0.00046575,120]
[337553375,1725807040256,-500.0,0.00046575,120]
[337553376,1725807040267,-500.0,0.00046575,120]
[337553377,1725807040277,-500.0,0.00046575,120]
[337553378,1725807040288,-500.0,0.00046575,120]
[337553379,1725807040297,-500.0,0.00046575,120]
[337553380,1725807040307,-500.0,0.00046575,120]
[337553381,1725807040318,-500.0,0.00046575,120]
[337553382,1725807040327,-500.0,0.00046575,120]
[337553384,1725807040337,-500.0,0.00046575,120]
[337553385,1725807040347,-500.0,0.00046575,120]
[337553386,1725807040357,-500.0,0.00046575,120]
[337553387,1725807040368,-500.0,0.00046575,120]
[337553388,1725807040378,-500.0,0.00046575,120]
[337553390,1725807040389,-500.0,0.00046575,120]
[337553391,1725807040399,-500.0,0.00046575,120]
[337553392,1725807040409,-500.0,0.00046575,120]
[337553393,1725807040421,-583.53135143,0.00046575,120]
[337553395,1725807040432,-500.0,0.00046575,120]
[337553397,1725807040443,-500.0,0.00046575,120]
[337553399,1725807040454,-1248.38,0.00046575,120]
[337553401,1725807040465,-500.0,0.00046575,120]
[337553402,1725807040475,-547.45,0.00046575,120]
[337553403,1725807040488,-2137.92,0.00046575,120]
[337553404,1725807040499,-500.0,0.00046575,120]
[337553405,1725807040511,-500.0,0.00046575,120]
[337553406,1725807040522,-500.0,0.00046575,120]
[337553407,1725807040532,-500.0,0.00046575,120]
[337553408,1725807040542,-543.17633039,0.00046575,120]
[337553409,1725807040552,-500.0,0.00046575,120]
[337553410,1725807040562,-500.0,0.00046575,120]
[337553411,1725807040572,-500.0,0.00046575,120]
[337553412,1725807040581,-500.0,0.00046575,120]
[337553413,1725807040591,-500.0,0.00046575,120]
[337553414,1725807040601,-500.0,0.00046575,7]
[337553415,1725807040611,-500.0,0.00046575,120]
[337553416,1725807040621,-500.0,0.00046575,120]
[337553417,1725807040630,-500.0,0.00046575,120]
[337553418,1725807040640,-500.0,0.00046575,120]
[337553419,1725807040650,-500.0,0.00046575,120]
[337553420,1725807040660,-500.0,0.00046575,120]
[337553421,1725807040670,-500.0,0.00046575,120]
[337553422,1725807040680,-500.0,0.00046575,120]
[337553423,1725807040690,-500.0,0.00046575,120]
[337553424,1725807040700,-500.0,0.00046575,120]
[337553425,1725807040710,-695.21,0.00046575,120]
[337553426,1725807040719,-506.59273423,0.00046575,120]
[337553427,1725807040728,-500.0,0.00046575,120]
[337553428,1725807040738,-500.0,0.00046575,120]
[337553429,1725807040747,-1010.36,0.00046575,120]
[337553430,1725807040757,-500.0,0.00046575,120]
[337553431,1725807040767,-500.0,0.00046575,120]
[337553432,1725807040778,-500.0,0.00046575,120]
[337553433,1725807040787,-500.0,0.00046575,120]
[337553434,1725807040797,-500.0,0.00046575,120]
[337553435,1725807040806,-500.0,0.00046575,120]
[337553436,1725807040816,-4295.94,0.00046575,120]
[337553437,1725807040826,-500.0,0.00046575,120]
[337553438,1725807040836,-500.0,0.00046575,120]
[337553439,1725807040846,-500.0,0.00046575,120]
[337553440,1725807040856,-500.0,0.00046575,120]
[337553441,1725807040865,-500.0,0.00046575,120]
[337553442,1725807040877,-500.0,0.00046575,120]
[337553443,1725807040886,-500.0,0.00046575,120]
[337553444,1725807040896,-500.0,0.00046575,120]
[337553445,1725807040905,-500.0,0.00046575,120]
[337553446,1725807040915,-902.12,0.00046575,120]
[337553447,1725807040925,-500.0,0.00046575,120]
[337553448,1725807040934,-928.57,0.00046575,120]
[337553449,1725807040944,-687.45,0.00046575,120]
[337553450,1725807040953,-500.0,0.00046575,120]
[337553451,1725807040963,-611.11,0.00046575,120]
[337553452,1725807040973,-500.0,0.00046575,120]
[337553453,1725807040982,-1215.21,0.00046575,120]
[337553454,1725807040992,-500.0,0.00046575,120]
[337553455,1725807041002,-416.20652084,0.00046575,120]
[337553456,1725807041012,-500.0,0.00046575,120]
[337553457,1725807041022,-500.0,0.00046575,120]
[337553458,1725807041035,-511.27,0.00046575,120]
[337553459,1725807041046,-500.0,0.00046575,120]
[337553460,1725807041056,-1142.94,0.00046575,120]
[337553461,1725807041065,-660.43,0.00046575,120]
[337553462,1725807041075,-1323.55,0.00046575,120]
[337553463,1725807041084,-500.0,0.00046575,30]
[337553464,1725807041093,-500.0,0.00046575,120]
[337553465,1725807041103,-500.0,0.00046575,120]
[337553466,1725807041113,-500.0,0.00046575,120]
[337553467,1725807041122,-500.0,0.00046575,120]
[337553468,1725807041131,-1386.32,0.00046575,120]
[337553469,1725807041141,-500.0,0.00046575,2]
[337553470,1725807041150,-566.18,0.00046575,120]
[337553471,1725807041160,-500.0,0.00046575,120]
[337553472,1725807041171,-530.57,0.00046575,120]
[337553473,1725807041180,-514.17773224,0.00046575,30]
[337553474,1725807041190,-500.0,0.00046575,120]
[337553475,1725807041199,-700.57,0.00046575,120]
[337553476,1725807041209,-200.0,0.00046575,120]
[337553477,1725807041218,-1575.72,0.00046575,120]
[337553478,1725807041227,-32062.03,0.00046575,120]
[337553479,1725807041238,-4584.27,0.00046575,120]
[337553480,1725807041249,-500.0,0.00046575,120]
[337553481,1725807041258,-696.63,0.00046575,120]
[337553482,1725807041268,-500.0,0.00046575,120]
[337553483,1725807041278,-504.28,0.00046575,120]
[337553484,1725807041287,-500.0,0.00046575,120]
[337553485,1725807041297,-500.0,0.00046575,120]
[337553486,1725807041307,-500.0,0.00046575,120]
[337553487,1725807041316,-500.0,0.00046575,120]
[337553488,1725807041326,-500.0,0.00046575,120]
[337553489,1725807041335,-464.97,0.00046575,120]
[337553490,1725807041345,-946.3,0.00046575,120]
[337553491,1725807041354,-500.0,0.00046575,60]
[337553492,1725807041364,-500.0,0.00046575,120]
[337553493,1725807041373,-500.0,0.00046575,120]
[337553494,1725807041383,-797.66,0.00046575,30]
[337553495,1725807041392,-1041.0,0.00046575,120]
[337553496,1725807041402,-10544.84,0.00046575,120]
[337553497,1725807041412,-500.0,0.00046575,120]
[337553498,1725807041421,-521.51,0.00046575,120]
[337553499,1725807041430,-500.0,0.00046575,120]
[337553500,1725807041440,-500.0,0.00046575,120]
[337553501,1725807041450,-500.0,0.00046575,120]
[337553502,1725807041460,-726.47,0.00046575,120]
[337553503,1725807041471,-500.0,0.00046575,120]
[337553504,1725807041481,-500.0,0.00046575,120]
[337553505,1725807041490,-500.0,0.00046575,120]
[337553506,1725807041500,-500.0,0.00046575,120]
[337553507,1725807041510,-500.0,0.00046575,120]
[337553508,1725807041520,-500.0,0.00046575,120]
[337553509,1725807041530,-500.0,0.00046575,120]
[337553510,1725807041540,-1216.85,0.00046575,120]
[337553511,1725807041549,-500.0,0.00046575,120]
[337553512,1725807041559,-514.94,0.00046575,120]
[337553513,1725807041569,-9032.09,0.00046575,120]
[337553514,1725807041578,-1119.29,0.00046575,120]
[337553515,1725807041588,-500.0,0.00046575,120]
[337553516,1725807041598,-500.0,0.00046575,120]
[337553517,1725807041608,-2109.36,0.00046575,120]
[337553518,1725807041617,-500.0,0.00046575,120]
[337553519,1725807041627,-706.61,0.00046575,120]
[337553520,1725807041637,-1343.32,0.00046575,21]
[337553521,1725807041647,-500.0,0.00046575,120]
[337553522,1725807041656,-500.0,0.00046575,120]
[337553523,1725807041665,-500.0,0.00046575,7]
[337553524,1725807041675,-3287.86,0.00046575,120]
[337553525,1725807041687,-1187.88,0.00046575,120]
[337553526,1725807041696,-1757.49,0.00046575,120]
[337553527,1725807041706,-500.0,0.00046575,120]
[337553528,1725807041716,-500.0,0.00046575,120]
[337553529,1725807041726,-369.15582795,0.00046575,120]
[337553530,1725807041737,-1933.53,0.00046575,120]
[337553531,1725807041749,-500.0,0.00046575,120]
[337553532,1725807041761,-500.0,0.00046575,120]
[337553533,1725807041775,-550.71,0.00046575,120]
[337553534,1725807041788,-500.0,0.00046575,120]
[337553535,1725807041799,-500.0,0.00046575,120]
[337553536,1725807041810,-180.36901797,0.00046575,120]
[337553537,1725807041822,-500.0,0.00046575,120]
[337553538,1725807041833,-1247.9,0.00046575,120]
[337553539,1725807041845,-1089.33,0.00046575,120]
[337553540,1725807041857,-5005.02,0.00046575,120]
[337553541,1725807041868,-719.67,0.00046575,120]
[337553542,1725807041882,-500.0,0.00046575,120]
[337553543,1725807041894,-500.0,0.00046575,120]
[337553544,1725807041905,-500.0,0.00046575,120]
[337553545,1725807041916,-1993.82,0.00046575,120]
[337553546,1725807041927,-502.1755109,0.00046575,120]
[337553547,1725807041938,-910.21,0.00046575,120]
[337553548,1725807041951,-500.0,0.00046575,120]
[337553549,1725807041963,-500.0,0.00046575,120]
[337553550,1725807041974,-2601.52,0.00046575,120]
[337553551,1725807041984,-3014.51,0.00046575,120]
[337553552,1725807041996,-305.40219266,0.00046575,120]
[337553553,1725807042006,-500.0,0.00046575,120]
[337553554,1725807042017,-500.0,0.00046575,120]
[337553555,1725807042029,-500.0,0.00046575,120]
[337553556,1725807042040,-952.69,0.00046575,120]
[337553557,1725807042052,-1501.9,0.00046575,120]
[337553558,1725807042063,-666.22,0.00046575,120]
[337553559,1725807042075,-1935.62,0.00046575,120]
[337553560,1725807042087,-500.0,0.00046575,120]
[337553561,1725807042097,-500.0,0.00046575,120]
[337553562,1725807042108,-1076.47,0.00046575,120]
[337553563,1725807042118,-500.0,0.00046575,120]
[337553564,1725807042130,-4443.16,0.00046575,120]
[337553565,1725807042142,-561.2,0.00046575,120]
[337553566,1725807042155,-500.0,0.00046575,120]
[337553567,1725807042167,-796.49,0.00046575,120]
[337553568,1725807042178,-500.0,0.00046575,120]
[337553569,1725807042189,-500.0,0.00046575,120]
[337553570,1725807042200,-500.0,0.00046575,120]
[337553571,1725807042211,-500.0,0.00046575,120]
[337553572,1725807042222,-500.0,0.00046575,120]
[337553573,1725807042233,-215.10891778,0.00046575,120]
[337553574,1725807042244,-500.0,0.00046575,120]
[337553575,1725807042254,-500.0,0.00046575,120]
[337553576,1725807042265,-500.0,0.00046575,120]
[337553577,1725807042275,-500.0,0.00046575,120]
[337553578,1725807042284,-500.0,0.00046575,120]
[337553579,1725807042295,-504.81427983,0.00046575,120]
[337553580,1725807042306,-500.0,0.00046575,120]
[337553581,1725807042316,-500.0,0.00046575,120]
[337553582,1725807042327,-504.0737863,0.00046575,120]
[337553583,1725807042338,-500.0,0.00046575,120]
[337553584,1725807042347,-431.91068382,0.00046575,120]
[337553585,1725807042358,-500.0,0.00046575,120]
[337553586,1725807042369,-500.0,0.00046575,120]
[337553587,1725807042380,-500.0,0.00046575,120]
[337553588,1725807042390,-1135.56,0.00046575,120]
[337553589,1725807042402,-500.0,0.00046575,120]
[337553590,1725807042412,-1900.74,0.00046575,120]
[337553591,1725807042423,-500.0,0.00046575,120]
[337553592,1725807042433,-500.0,0.00046575,120]
[337553593,1725807042444,-500.0,0.00046575,120]
[337553594,1725807042456,-684.74,0.00046575,120]
[337553595,1725807042467,-500.0,0.00046575,120]
[337553596,1725807042478,-500.0,0.00046575,120]
[337553597,1725807042489,-163.88856398,0.00046575,120]
[337553598,1725807042500,-500.0,0.00046575,120]
[337553599,1725807042511,-500.0,0.00046575,120]
[337553600,1725807042521,-500.0,0.00046575,120]
[337553601,1725807042532,-500.0,0.00046575,120]
[337553602,1725807042542,-500.0,0.00046575,30]
[337553603,1725807042551,-500.0,0.00046575,120]
[337553604,1725807042561,-7107.21,0.00046575,120]
[337553605,1725807042571,-500.0,0.00046575,120]
[337553606,1725807042581,-500.0,0.00046575,120]
[337553607,1725807042590,-500.0,0.00046575,120]
[337553608,1725807042600,-4898.22,0.00046575,120]
[337553609,1725807042610,-500.0,0.00046575,120]
[337553610,1725807042622,-500.0,0.00046575,120]
[337553611,1725807042633,-500.0,0.00046575,120]
[337553612,1725807042645,-500.0,0.00046575,120]
[337553613,1725807042658,-500.0,0.00046575,120]
[337553614,1725807042669,-500.0,0.00046575,120]
[337553615,1725807042680,-500.0,0.00046575,120]
[337553616,1725807042692,-6607.04,0.00046575,120]
[337553617,1725807042704,-962.13,0.00046575,120]
[337553618,1725807042714,-500.0,0.00046575,120]
[337553619,1725807042729,-500.0,0.00046575,120]
[337553620,1725807042740,-737.6,0.00046575,120]
[337553621,1725807042753,-781.84,0.00046575,120]
[337553622,1725807042764,-500.0,0.00046575,120]
[337553623,1725807042778,-864.98,0.00046575,120]
[337553624,1725807042798,-500.0,0.00046575,120]
[337553625,1725807042808,-500.0,0.00046575,120]
[337553626,1725807042818,-500.0,0.00046575,120]
[337553627,1725807042828,-500.0,0.00046575,120]
[337553628,1725807042838,-500.0,0.00046575,120]
[337553629,1725807042848,-589.50622739,0.00046575,120]
[337553630,1725807042858,-980.18,0.00046575,120]
[337553631,1725807042868,-500.0,0.00046575,120]
[337553632,1725807042883,-500.0,0.00046575,120]
[337553633,1725807042894,-1090.37,0.00046575,120]
[337553635,1725807042905,-500.0,0.00046575,120]
[337553637,1725807042916,-500.0,0.00046575,120]
[337553639,1725807042927,-500.0,0.00046575,120]
[337553640,1725807042937,-500.0,0.00046575,120]
[337553641,1725807042947,-500.0,0.00046575,120]
[337553642,1725807042957,-500.0,0.00046575,120]
[337553643,1725807042968,-874.96,0.00046575,120]
[337553644,1725807042978,-688.39,0.00046575,120]
[337553645,1725807042990,-500.0,0.00046575,120]
[337553649,1725807043002,-896.38,0.00046575,120]
[337553651,1725807043011,-150.112233,0.000466,13]
[337553653,1725807043022,-150.112233,0.000469,10]
[337553655,1725807043034,-150.112233,0.000471,11]
[337553658,1725807043045,-500.0,0.00047296,120]
[337553661,1725807043055,-150.112233,0.000474,12]
[337553664,1725807043065,-88888.0,0.00047571,120]
[337553666,1725807043075,-500.0,0.0004766,120]
[337553669,1725807043086,-500.0,0.0004766,120]
[337553672,1725807043097,-369.69396981,0.0004766,120]
[337553674,1725807043107,-500.0,0.00047671,120]
[337553675,1725807043118,-200.0,0.00047671,7]
[337553677,1725807043128,-500.0,0.00047671,120]
[337553679,1725807043138,-500.0,0.00047671,120]
[337553680,1725807043149,-501.61631953,0.00047671,120]
[337553681,1725807043159,-500.0,0.00047671,120]
[337553682,1725807043169,-762.69,0.00047671,120]
[337553683,1725807043179,-500.0,0.00047671,120]
[337553684,1725807043191,-500.0,0.00047671,120]
[337553685,1725807043201,-500.0,0.00047671,120]
[337553686,1725807043211,-500.0,0.00047671,120]
[337553687,1725807043222,-1123.57,0.00047671,120]
[337553688,1725807043231,-500.0,0.00047671,120]
[337553689,1725807043242,-500.0,0.00047671,120]
[337553690,1725807043252,-803.75,0.00047671,120]
[337553691,1725807043261,-500.0,0.00047671,120]
[337553692,1725807043271,-500.0,0.00047671,120]
[337553693,1725807043290,-500.0,0.00047671,120]
[337553694,1725807043299,-500.0,0.00047671,120]
[337553695,1725807043309,-500.0,0.00047671,120]
[337553696,1725807043319,-500.0,0.00047671,120]
[337553697,1725807043331,-500.0,0.00047671,120]
[337553698,1725807043342,-500.0,0.00047671,120]
[337553699,1725807043352,-565.16,0.00047671,120]
[337553700,1725807043362,-712.34,0.00047671,120]
[337553701,1725807043372,-500.0,0.00047671,120]
[337553704,1725807043382,-945.68,0.00047671,120]
[337553706,1725807043392,-634.16,0.00047671,120]
[337553709,1725807043402,-500.0,0.00047671,120]
[337553713,1725807043412,-500.0,0.00047671,120]
[337553716,1725807043423,-514.17402109,0.00047671,120]
[337553719,1725807043434,-937.02,0.00047671,120]
[337553721,1725807043443,-500.0,0.00047671,120]
[337553723,1725807043454,-500.0,0.00047671,120]
[337553725,1725807043465,-500.0,0.00047671,120]
[337553727,1725807043475,-1339.26,0.00047671,120]
[337553729,1725807043484,-500.0,0.00047671,120]
[337553731,1725807043494,-500.0,0.00047671,120]
[337553733,1725807043504,-500.0,0.00047671,120]
[337553735,1725807043514,-500.0,0.00047671,120]
[337553737,1725807043525,-286.30036648,0.00047671,120]
[337553739,1725807043535,-500.0,0.00047671,120]
[337553741,1725807043545,-500.0,0.00047671,120]
[337553743,1725807043555,-500.0,0.00047671,120]
[337553745,1725807043565,-500.0,0.00047671,120]
[337553747,1725807043575,-500.0,0.00047671,120]
[337553749,1725807043587,-500.0,0.00047671,120]
[337553751,1725807043599,-888.63,0.00047671,120]
[337553753,1725807043611,-500.0,0.00047671,120]
[337553755,1725807043621,-500.0,0.00047671,120]
[337553757,1725807043632,-500.0,0.00047671,120]
[337553759,1725807043643,-500.0,0.00047671,120]
[337553762,1725807043656,-500.0,0.00047671,120]
[337553763,1725807043666,-500.0,0.00047671,120]
[337553765,1725807043676,-500.0,0.00047671,120]
[337553767,1725807043685,-503.34088848,0.00047671,120]
[337553769,1725807043696,-1124.39,0.00047671,120]
[337553771,1725807043706,-500.0,0.00047671,120]
[337553773,1725807043716,-534.66,0.00047671,120]
[337553775,1725807043726,-500.0,0.00047671,120]
[337553777,1725807043736,-500.0,0.00047671,120]
[337553779,1725807043746,-759.6,0.00047671,30]
[337553781,1725807043757,-500.0,0.00047671,120]
[337553783,1725807043767,-500.0,0.00047671,120]
[337553785,1725807043777,-500.0,0.00047671,120]
[337553787,1725807043787,-607.64,0.00047671,120]
[337553789,1725807043797,-695.06,0.00047671,120]
[337553791,1725807043808,-500.0,0.00047671,120]
[337553793,1725807043818,-500.0,0.00047671,120]
[337553795,1725807043827,-995.35,0.00047671,120]
[337553797,1725807043837,-500.0,0.00047671,120]
[337553799,1725807043848,-500.0,0.00047671,120]
[337553801,1725807043858,-500.0,0.00047671,120]
[337553803,1725807043869,-500.0,0.00047671,120]
[337553805,1725807043883,-426.18101488,0.00047671,120]
[337553807,1725807043895,-500.0,0.00047671,120]
[337553809,1725807043906,-500.66899498,0.00047671,120]
[337553812,1725807043916,-816.65,0.00047671,120]
[337553814,1725807043927,-500.0,0.00047671,120]
[337553816,1725807043937,-582.17,0.00047671,120]
[337553818,1725807043947,-500.0,0.00047671,120]
[337553820,1725807043958,-500.0,0.00047671,2]
[337553822,1725807043969,-657.74,0.00047671,120]
[337553824,1725807043978,-500.0,0.00047671,120]
[337553826,1725807043988,-500.0,0.00047671,120]
[337553828,1725807043999,-500.0,0.00047671,120]
[337553830,1725807044009,-500.0,0.00047671,120]
[337553832,1725807044019,-500.0,0.00047671,120]
[337553834,1725807044029,-500.0,0.00047671,120]
[337553836,1725807044039,-500.0,0.00047671,120]
[337553839,1725807044050,-500.0,0.00047671,120]
[337553841,1725807044060,-500.0,0.00047671,120]
[337553843,1725807044071,-500.0,0.00047671,120]
[337553845,1725807044080,-500.0,0.00047671,120]
[337553847,1725807044090,-500.0,0.00047671,120]
[337553849,1725807044100,-500.0,0.00047671,120]
[337553851,1725807044110,-500.0,0.00047671,120]
[337553853,1725807044120,-500.0,0.00047671,120]
[337553855,1725807044130,-500.0,0.00047671,120]
[337553857,1725807044140,-505.94631158,0.00047671,120]
[337553859,1725807044151,-185.13488092,0.00047671,120]
[337553861,1725807044162,-500.0,0.00047671,120]